Cogmind - Beta 15 @@@ ROGUE MODE // 2025.06.16 @ 10:50:41 Player: Storm Mk9 Result: Destroyed by as-21460 with Assembled F-torch Performance ------------- Evolutions (3) 1500 Regions Visited (10) 2000 Robots Destroyed (105) 525 Value Destroyed (3717) 3717 Prototype IDs (45) 900 Alien Tech Used (0) 0 Bonus (2165) 2165 TOTAL SCORE: 10807 Bonus ------- High Alert Combat Kills 65 Aligned with FarCom 300 Met Imprinter 300 Destroyed Z-Imprinter 1000 Triggered Deep Caves Wall 500 Cogmind --------- Core Integrity 0/700 Matter 52/300 Energy 90/300 System Corruption 0% Temperature Cool (78) Movement Walking (110) Location -7/Deep Caves Parts ------- > --- POWER (1) -------- Enhanced Nuclear Core > --- PROPULSION (3) --- Zionite Composite Leg I Zionite Composite Leg I Zionite Composite Leg I > --- UTILITY (6) ------ Experimental Heat Sink Experimental Heat Sink High-capacity Storage Unit Makeshift Light Armor Plating > --- WEAPON (3) ------- (None) > --- INVENTORY (20) --- Zionite Light DM Reactor Compact Wheel High-capacity Matter Pod (0) System Restoration Module Improved Trap Extractor (6/6 Dirty Bomb) Hacking Drone Bay Improved Spread Laser Improved Spread Laser Minigun Minigun Enhanced Autogun Heavy Missile Launcher Plasma Cutter Molecular Deconstructor Longsword +1 Peak State ------------ > --- POWER ------------ Enhanced Nuclear Core > --- PROPULSION ------- Zionite Composite Leg I Zionite Composite Leg I Zionite Composite Leg I > --- UTILITY ---------- Experimental Heat Sink High-capacity Storage Unit Target Analyzer Core Analyzer Makeshift Light Armor Plating Makeshift Light Armor Plating > --- WEAPON ----------- AWS/Autocannon > --- INVENTORY -------- Enhanced Nuclear Core Zionite Light DM Reactor Compact Wheel Experimental Heat Sink High-capacity Matter Pod Makeshift Light Armor Plating System Restoration Module Improved Trap Extractor Hacking Drone Bay Improved Spread Laser Improved Spread Laser Minigun Minigun Enhanced Autogun Heavy Missile Launcher Plasma Cutter Molecular Deconstructor Longsword +1 [Rating: 85] Favorites ----------- Power Enhanced Nuclear Core Engine Ion Engine Power Core Enhanced Nuclear Core Reactor Zionite Light DM Reactor Propulsion Light Treads Treads Light Treads Leg Zionite Composite Leg I Utility High-capacity Storage Unit Device Cooling System Storage High-capacity Storage Unit Processor Core Analyzer Protection Hardened Medium Armor Plating Weapon Minigun Energy Gun Improved Spread Laser Energy Cannon Improved EM Pulse Cannon Ballistic Gun Minigun Ballistic Cannon Light Cannon Launcher Heavy Missile Launcher Special Weapon Plasma Cutter Slashing Weapon Longsword +1 Build | -11 -10 -10 -10 -9 -8 -7 -7 -7 -7 -7 ------- Run | Yrd Mat Min Exi Min Mat Fac Low Low Zio Dee Slots Evolved 6 | . . . . . 4 2 . . . . Power . | . . . . . . . . . . . Propulsion 1 | . . . . . 1 . . . . . Utility 4 | . . . . . 2 2 . . . . Weapon 1 | . . . . . 1 . . . . . Parts Attached 94 | 7 9 6 1 . 15 23 5 7 2 19 Power 9 | 1 2 1 . . 1 2 . 1 . 1 Engine 3 | 1 2 . . . . . . . . . Core 5 | . . 1 . . 1 2 . 1 . . Reactor 1 | . . . . . . . . . . 1 Propulsion 18 | 2 1 1 . . 5 4 . 1 . 4 Treads 13 | 2 1 1 . . 3 4 . 1 . 1 Leg 5 | . . . . . 2 . . . . 3 Wheel . | . . . . . . . . . . . Hover . | . . . . . . . . . . . Flight . | . . . . . . . . . . . Utility 35 | 2 4 1 . . 3 10 3 1 1 10 Device 9 | 1 . . . . 1 4 . . . 3 Storage 4 | 1 3 . . . . . . . . . Processor 3 | . . . . . 1 2 . . . . Hackware . | . . . . . . . . . . . Protection 19 | . 1 1 . . 1 4 3 1 1 7 Artifact . | . . . . . . . . . . . Weapon 32 | 2 2 3 1 . 6 7 2 4 1 4 Energy Gun 11 | 1 1 1 . . 2 4 . 1 . 1 Energy Cannon 1 | . . . . . . . 1 . . . Ballistic Gun 12 | 1 . 1 . . 3 3 . 3 . 1 Ballistic Cannon 3 | . 1 1 . . . . . . . 1 Launcher 3 | . . . . . 1 . 1 . . 1 Special Weapon 1 | . . . . . . . . . 1 . Impact Weapon . | . . . . . . . . . . . Slashing Weapon 1 | . . . 1 . . . . . . . Piercing Weapon . | . . . . . . . . . . . Special Melee Weapon . | . . . . . . . . . . . Unidentified Prototypes 12 | . . . . . 1 4 . . . 7 Parts Lost 40 | . 5 7 . . 3 2 2 2 . 19 Power 6 | . 2 1 . . . 1 . . . 2 Propulsion 8 | . 1 1 . . 3 . . 1 . 2 Utility 17 | . . 2 . . . 1 2 1 . 11 Weapon 9 | . 2 3 . . . . . . . 4 Highest Loss Streak 7 | . 1 5 . . 2 1 1 2 . 7 To Critical Strikes . | . . . . . . . . . . . Average Backups 17 | 3 15 14 12 14 18 19 18 18 19 18 Power 1 | . 1 . 1 1 1 1 1 . 1 1 Propulsion 2 | . 2 2 2 2 1 1 3 2 2 1 Utility 6 | . 5 6 6 7 5 6 6 7 7 7 Weapon 7 | 1 5 4 3 4 9 8 7 7 8 6 Tool/Special . | . . . . . . . . . . . Unused Backups 27 | 1 . . . . 4 12 2 . . 8 Power 3 | . . . . . . 2 . . . 1 Propulsion 2 | 1 . . . . . . . . . 1 Utility 9 | . . . . . 2 3 1 . . 3 Weapon 12 | . . . . . 2 6 1 . . 3 Tool/Special 1 | . . . . . . 1 . . . . Average Slot Usage (%) 97 | . 99 95 85 85 94 96 94 97 100 96 Engine 3 | . 13 4 . . . . . . . . Core 5 | . . 9 14 14 9 7 7 6 7 4 Treads 22 | . 28 28 28 28 16 21 22 23 23 10 Leg 1 | . . . . . 6 1 . . . 11 Device 5 | . 5 6 . . 8 12 5 . . 3 Storage 8 | . 14 14 14 14 9 7 7 7 7 7 Processor 9 | . . . . . 8 11 15 15 15 15 Protection 12 | . 8 4 . . 7 9 11 20 23 15 Energy Gun 7 | . 14 12 . . 9 4 7 6 6 2 Ballistic Gun 14 | . 12 5 7 . 15 17 14 14 15 15 Ballistic Cannon 1 | . 1 10 14 14 1 . . . . . Peak Build Rating 85 | 7 9 10 16 16 31 53 55 57 55 85 Average Rating 37 | 4 8 9 12 16 25 44 51 53 54 62 On Entrance 27 | . 7 9 9 16 16 30 50 53 54 55 Naked Turns . | . . . . . . . . . . . Heaviest Build 120 | 15 52 52 51 51 61 76 94 98 88 120 Greatest Support 76 | 40 40 40 40 40 60 76 76 76 76 76 Greatest Overweight (x) 20 | . 1 1 1 1 20 1 1 1 1 1 Average Overweight (x) . | . . 1 1 1 1 . . . 1 . Largest Inventory Capacity 20 | 8 20 20 20 20 20 20 20 20 20 20 Average Capacity 19 | 7 18 20 20 20 20 20 20 20 20 20 Most Carried 20 | 5 18 17 14 14 20 20 20 20 20 20 Average Carried 18 | 3 15 14 12 14 18 19 19 19 20 19 Final Capacity 20 | 8 20 20 20 20 20 20 20 20 20 20 Final Carried 20 | 3 17 12 14 14 20 20 20 20 20 16 Class Distribution -------------------- 36% | Tank 27% | Mutant 20% | Gunner 11% | Scavenger-Skirmisher Dominant Class ---------------- Mutant | -10/Materials Scavenger-Mutant | -10/Mines Mutant | -10/Exiles Mutant | -9/Mines Scavenger-Skirmisher | -8/Materials Gunner | -7/Factory Gunner | -7/Lower Caves Tank | -7/Lower Caves Tank | -7/Zion Gunner | -7/Deep Caves Resources | -11 -10 -10 -10 -9 -8 -7 -7 -7 -7 -7 ----------- Run | Yrd Mat Min Exi Min Mat Fac Low Low Zio Dee Matter Collected 3496 | 224 407 150 . . 417 1007 315 492 18 466 Remotely . | . . . . . . . . . . . Salvage Created 3558 | 11 845 143 . . 532 1147 216 260 . 404 Parts 205 | 2 49 . . . 32 77 11 10 . 24 Haulers Intercepted 3 | . 2 . . . . 1 . . . . Recyclers Shooed 1 | . 1 . . . . . . . . . Parts Field Recycled . | . . . . . . . . . . . Retrieved Matter . | . . . . . . . . . . . Parts Self-Destructed 30 | . . . . . . . 9 16 5 . Prevented . | . . . . . . . . . . . Kills | -11 -10 -10 -10 -9 -8 -7 -7 -7 -7 -7 ------- Run | Yrd Mat Min Exi Min Mat Fac Low Low Zio Dee Combat Hostiles Destroyed 114 | . 22 11 . . 19 25 8 9 . 20 Melee 5 | . . . . . . . . . . 5 Guns 77 | . 18 6 . . 11 25 6 6 . 5 Cannons 15 | . 4 5 . . . . . . . 6 AOE 17 | . . . . . 8 . 2 3 . 4 Classes Destroyed 17 | 1 5 1 . . 2 4 1 1 . 2 Worker 1 | . . . . . . 1 . . . . Builder 2 | . 1 . . . 1 . . . . . Tunneler 1 | 1 . . . . . . . . . . Hauler 3 | . 2 . . . . 1 . . . . Minesweeper 1 | . . . . . . . . 1 . . Watcher 5 | . 2 . . . . 3 . . . . Swarmer 28 | . 6 . . . 7 6 7 2 . . Grunt 40 | . 16 . . . 9 8 . 7 . . Brawler 1 | . . . . . . 1 . . . . Duelist 1 | . . . . . . 1 . . . . Sentry 4 | . . . . . 2 2 . . . . Specialist 1 | . . . . . . . 1 . . . Hunter 1 | . . . . . 1 . . . . . Programmer 7 | . . . . . . 7 . . . . Z-Light 8 | . . . . . . . . . . 8 Assembler 1 | . . . . . . . . . . 1 Assembled 23 | . . 11 . . . . . . . 12 Best Kill Streak 9 | 1 3 9 . . 7 6 4 4 . 7 Combat Bots Only 9 | . 3 9 . . 6 6 4 4 . 6 Max Kills in Single Turn 3 | 1 2 1 . . 3 2 2 1 . 2 Gunslinging 1 | . . . . . . 1 1 . . . Exploded 3 | . . . . . 3 . 1 1 . 1 Melee 1 | . . . . . . . . . . 1 Uniques/NPCs Destroyed . | . . . . . . . . . . . Combat | -11 -10 -10 -10 -9 -8 -7 -7 -7 -7 -7 -------- Run | Yrd Mat Min Exi Min Mat Fac Low Low Zio Dee Hostile Shots Fired 658 | . 95 52 . . 79 105 26 66 . 235 Missed 186 | . 25 13 . . 22 35 8 18 . 65 Hits 472 | . 70 39 . . 57 70 18 48 . 170 Melee 28 | . . 11 . . . 5 . 2 . 10 Projectile 444 | . 70 28 . . 57 65 18 46 . 160 AOE 1 | . . . . . . 1 . . . . Critical Strikes 10 | . . 1 . . . 5 . . . 4 Part Disruptions 1 | . . . . . . . 1 . . . Damage Taken 8912 | . 838 724 . . 731 1371 196 697 . 4355 Core 1021 | . 135 85 . . 101 97 9 . . 594 Absorbed by Shields 20 | . . . . . . 20 . . . . Redirected to Shielding 40 | . . 40 . . . . . . . . Ignored by Resistances 161 | . . . . . . . 58 103 . . Core Remaining (%) 64 | 100 . . . 12 81 . . . . . Volleys Fired 261 | 3 67 33 . . 25 66 13 29 . 25 Largest 3 | 1 2 2 . . 3 3 3 3 . 3 Hottest 148 | 50 80 80 . . 148 125 125 135 . 110 Shots Fired 637 | 3 135 65 1 . 69 199 31 63 . 71 Gun 564 | 3 125 44 . . 66 199 28 59 . 40 Cannon 42 | . 10 21 1 . . . . . . 10 Launcher 31 | . . . . . 3 . 3 4 . 21 Special . | . . . . . . . . . . . Kinetic 414 | . 67 35 1 . 41 163 19 41 . 47 Thermal 176 | 3 68 20 . . 22 36 9 18 . . Explosive 31 | . . . . . 3 . 3 4 . 21 Electromagnetic 13 | . . 10 . . 3 . . . . . Phasic 3 | . . . . . . . . . . 3 Robot Hit Streak 14 | 2 14 9 . . 12 14 11 7 . 4 Robot Miss Streak 9 | 1 3 3 . . 4 7 5 8 . 9 Penetration Max . | . . . . . . . . . . . Secondary Targets 11 | . 1 3 . . 1 4 2 . . . Max Gunslinging Chain 1 | . 1 1 . . 1 1 1 . . . Autonomous 10 | . . . . . . . . . . 10 Shots Hit Robots 401 | 2 93 45 . . 51 124 15 34 . 37 Core Hits 300 | 1 44 20 . . 54 89 22 30 . 40 Critical Kills 3 | . . . . . . 2 . . . 1 Critical Parts Destroyed 1 | . 1 . . . . . . . . . Critical Strikes 17 | . 9 5 . . . 2 . . . 1 Burn 11 | . 8 3 . . . . . . . . Destroy 4 | . 1 . . . . 2 . . . 1 Blast 1 | . . 1 . . . . . . . . Corrupt 1 | . . 1 . . . . . . . . Melee Attacks 13 | . . . . . . 3 1 . . 9 Impact . | . . . . . . . . . . . Slashing 13 | . . . . . . 3 1 . . 9 Piercing . | . . . . . . . . . . . Sneak Attacks . | . . . . . . . . . . . Combat Hostiles . | . . . . . . . . . . . Follow-up Attacks . | . . . . . . . . . . . Damage Inflicted 10376 | 26 1261 602 . . 1372 2436 656 1057 . 2966 Guns 5860 | 26 1121 396 . . 716 2373 246 552 . 430 Cannons 1159 | . 140 206 . . . . . . . 813 Explosions 3017 | . . . . . 656 63 410 505 . 1383 Melee 332 | . . . . . . . . . . 332 Ramming 8 | . . . . . . . . . . 8 Kinetic 4539 | . 565 342 . . 305 1725 122 303 . 1177 Thermal 2440 | 26 696 186 . . 448 711 124 249 . . Explosive 2873 | . . . . . 575 . 410 505 . 1383 Electromagnetic 118 | . . 74 . . 44 . . . . . Impact . | . . . . . . . . . . . Slashing 332 | . . . . . . . . . . 332 Piercing . | . . . . . . . . . . . Phasic 66 | . . . . . . . . . . 66 Highest Corruption 7 | . 3 7 7 7 . 5 5 5 5 . Average Corruption 3 | . 2 5 7 7 . 3 5 5 5 . Corruption Purged . | . . . . . . . . . . . Corruption Blocked . | . . . . . . . . . . . Effects 246 | . 65 10 17 1 . 69 27 55 2 . Message Errors 53 | . 16 3 4 . . 14 4 11 1 . Matter Fused 54 | . 11 3 5 1 . 14 7 12 1 . Heat Flow Errors 32 | . 4 1 3 . . 12 3 9 . . Energy Discharges 38 | . 12 . . . . 14 4 8 . . Parts Rejected 3 | . . 1 . . . . 1 1 . . Parts Fused 4 | . . . . . . 1 1 2 . . Data Loss (minor) 23 | . 9 1 1 . . 7 . 5 . . Data Loss (major) 18 | . 4 1 3 . . 5 2 3 . . Misfires 8 | . 3 . 1 . . 2 2 . . . Alerts 9 | . 4 . . . . . 2 3 . . Weapon Failures 4 | . 2 . . . . . 1 1 . . Overload Shots . | . . . . . . . . . . . Overflow Damage 271 | . . 12 . . . . 116 . . 143 Projectiles 90 | . . 12 . . . . . . . 78 Explosions 161 | . . . . . . . 116 . . 45 Melee 20 | . . . . . . . . . . 20 Knockbacks 10 | . 1 5 . . . . . . . 4 Impact . | . . . . . . . . . . . Kinetic 7 | . 1 3 . . . . . . . 3 Secondary 3 | . . 2 . . . . . . . 1 Self-Inflicted Damage 201 | . . . . . 68 76 . . . 57 Shots 5 | . . . . . 3 1 . . . 1 Rammed . | . . . . . . . . . . . Targets Rammed 1 | . . . . . . . . . . 1 Kicked 1 | . . . . . . . . . . 1 Crushed . | . . . . . . . . . . . Highest Temperature 468 | 30 267 282 161 . 322 329 445 468 . 266 Average Temperature 110 | 16 55 115 77 . 101 75 193 145 . 111 Received Heat Transfer 1846 | . 306 . . . 225 234 . 225 . 856 Effects 22 | . . 2 . . . 1 5 9 . 5 Shutdowns 3 | . . . . . . . 2 1 . . Energy Bleed 3 | . . . . . . 1 . 2 . . Interference 14 | . . 2 . . . . 3 4 . 5 Damage (minor) 2 | . . . . . . . . 2 . . Siege Activations . | . . . . . . . . . . . Martial Activations . | . . . . . . . . . . . Shielding Activations . | . . . . . . . . . . . Robots Disrupted . | . . . . . . . . . . . Combat Hostiles . | . . . . . . . . . . . Robots Corrupted . | . . . . . . . . . . . Combat Hostiles . | . . . . . . . . . . . Parts Fried . | . . . . . . . . . . . Impact Corruptions . | . . . . . . . . . . . Robots Melted . | . . . . . . . . . . . Combat Hostiles . | . . . . . . . . . . . Parts Melted 6 | . 6 . . . . . . . . . Heat Transferred 4803 | 74 2627 777 . . 470 550 100 205 . . Parts Sabotaged . | . . . . . . . . . . . Parts Stolen . | . . . . . . . . . . . Parts Stripped . | . . . . . . . . . . . Power Chain Reactions 1 | . . . . . 1 . . . . . Alert | -11 -10 -10 -10 -9 -8 -7 -7 -7 -7 -7 ------- Run | Yrd Mat Min Exi Min Mat Fac Low Low Zio Dee Maximum Alert Level 2 | . . . . . 1 2 . . . . Low Security (%) 66 | 100 100 100 . 100 80 30 . . . . Level 1 17 | . . . . . 19 34 . . . . Level 2 15 | . . . . . . 35 . . . . Level 3 . | . . . . . . . . . . . Level 4 . | . . . . . . . . . . . Level 5 . | . . . . . . . . . . . High Security . | . . . . . . . . . . . Max Security . | . . . . . . . . . . . Peak Influence 563 | 5 184 54 . . 241 563 . . . . Initial 53 | . . 46 . . . 53 . . . . Average 174 | . 98 8 . . 138 268 . . . . Influence Increases 2665 | 5 638 8 . . 553 1071 185 205 . . Destroy 0b10 Robot/C 1660 | . 440 . . . 380 500 160 180 . . Destroy 0b10 Robot/NC 70 | 5 25 . . . 5 25 5 5 . . Destroy Leader 376 | . 118 . . . 80 138 20 20 . . Successful Hack 144 | . 39 8 . . 24 73 . . . . Disable Machine 60 | . . . . . 30 30 . . . . Anti-Garrison Action 200 | . . . . . . 200 . . . . Destroy Structure 35 | . 1 . . . 4 30 . . . . Lose Combat Pursuer 120 | . 15 . . . 30 75 . . . . Influence Decreases 2665 | 5 518 128 . . 434 627 657 296 . . Entered New Map 368 | . . 74 . . . 66 209 19 . . Time Decay 2193 | 5 478 40 . . 424 541 428 277 . . Lost Part 104 | . 40 14 . . 10 20 20 . . . Squads Dispatched 21 | . 6 . . . 4 11 . . . . Investigation 8 | . 4 . . . 2 2 . . . . Extermination 7 | . . . . . . 7 . . . . Reinforcement 5 | . 2 . . . 1 2 . . . . Assault . | . . . . . . . . . . . Garrison 1 | . . . . . 1 . . . . . Intercept . | . . . . . . . . . . . Searches Triggered . | . . . . . . . . . . . Construction Impeded 1 | . . . . . 1 . . . . . Haulers Reinforced 1 | . . . . . . 1 . . . . Active Scanning Responses . | . . . . . . . . . . . Cargo Convoy Interrupts . | . . . . . . . . . . . Stealth | -11 -10 -10 -10 -9 -8 -7 -7 -7 -7 -7 --------- Run | Yrd Mat Min Exi Min Mat Fac Low Low Zio Dee Distress Signals 7 | . 1 1 . . 1 4 . . . . Communications Jammed . | . . . . . . . . . . . Distress Signals . | . . . . . . . . . . . Times Spotted 199 | . 35 11 . . 30 47 8 13 . 55 Peak Tracking Total 37 | . 3 4 . . 7 6 3 4 . 37 Tactical Retreats 6 | . 1 . . . 2 3 . . . . Traps | -11 -10 -10 -10 -9 -8 -7 -7 -7 -7 -7 ------- Run | Yrd Mat Min Exi Min Mat Fac Low Low Zio Dee Traps Triggered 11 | . 6 . . . 1 4 . . . . Indirectly . | . . . . . . . . . . . Trap Hack Attempts . | . . . . . . . . . . . Triggered . | . . . . . . . . . . . Disarmed . | . . . . . . . . . . . Reprogrammed 4 | . . . . . . 4 . . . . Reused . | . . . . . . . . . . . Traps Extracted 4 | . . . . . . 4 . . . . Installed . | . . . . . . . . . . . Triggered . | . . . . . . . . . . . Most Traps Carried 6 | . . . . . . 4 4 6 6 6 Machines | -11 -10 -10 -10 -9 -8 -7 -7 -7 -7 -7 ---------- Run | Yrd Mat Min Exi Min Mat Fac Low Low Zio Dee Machines Disabled 8 | . . . . . 2 2 1 . 3 . Max in Single Turn 2 | . . . . . 1 2 1 . 1 . Garrison Access 3 | . . . . . 1 2 . . . . Machines Repaired . | . . . . . . . . . . . Machines Dismantled 3 | . . . . . . . . . 3 . Machines Sabotaged . | . . . . . . . . . . . Overloaded Fab Kills . | . . . . . . . . . . . Hacking | -11 -10 -10 -10 -9 -8 -7 -7 -7 -7 -7 --------- Run | Yrd Mat Min Exi Min Mat Fac Low Low Zio Dee Machines Accessed 36 | . 8 1 2 . 7 14 1 2 1 . Terminals 21 | . 6 1 . . 6 7 . 1 . . Fabricators 1 | . . . . . . 1 . . . . Repair Stations . | . . . . . . . . . . . Recycling Units 6 | . 2 . . . . 4 . . . . Scanalyzers . | . . . . . . . . . . . Garrison Access 3 | . . . . . 1 2 . . . . Total Hacks 116 | . 30 4 24 . 18 33 1 2 4 . Successful 68 | . 13 2 24 . 8 14 1 2 4 . Failed 48 | . 17 2 . . 10 19 . . . . Catastrophic 8 | . 1 . . . . 7 . . . . Database Lockouts . | . . . . . . . . . . . Manual 49 | . 15 1 1 . 13 17 1 . 1 . Terminals 61 | . 22 4 . . 16 18 . 1 . . Fabricators 3 | . . . . . . 3 . . . . Repair Stations . | . . . . . . . . . . . Recycling Units 14 | . 8 . . . . 6 . . . . Scanalyzers . | . . . . . . . . . . . Garrison Access 8 | . . . . . 2 6 . . . . Terminal Hacks 50 | . 7 2 24 . 4 6 1 2 4 . Record 24 | . . . 23 . . . . 1 . . Part Schematic 4 | . . . . . . . . . 4 . Robot Analysis 5 | . 2 . . . 1 2 . . . . Prototype ID Bank 8 | . 5 1 . . . 2 . . . . Open Door 2 | . . . . . . . 1 1 . . Level Access Points 2 | . . 1 . . 1 . . . . . Branch Access Points 2 | . . . . . 1 1 . . . . Reprogram Traps 1 | . . . . . . 1 . . . . Zone Layout 1 | . . . . . 1 . . . . . Proto ID Catalog 1 | . . . 1 . . . . . . . Fabricator Hacks . | . . . . . . . . . . . Repair Station Hacks . | . . . . . . . . . . . Recycling Unit Hacks 3 | . 2 . . . . 1 . . . . Retrieve Components 3 | . 2 . . . . 1 . . . . Scanalyzer . | . . . . . . . . . . . Garrison Access Hacks 3 | . . . . . 2 1 . . . . Unlock Access 1 | . . . . . 1 . . . . . Seal Access 2 | . . . . . 1 1 . . . . Unauthorized Hacks 12 | . 4 . . . 2 6 . . . . Terminals 8 | . 2 . . . 2 4 . . . . Botnet 4 | . 1 . . . 1 2 . . . . Disrupt 1 | . . . . . . 1 . . . . Operators 3 | . 1 . . . 1 1 . . . . Fabricators . | . . . . . . . . . . . Repair Stations . | . . . . . . . . . . . Recycling Units 3 | . 2 . . . . 1 . . . . Reject 1 | . 1 . . . . . . . . . Mask 2 | . 1 . . . . 1 . . . . Scanalyzers . | . . . . . . . . . . . Garrison Access 1 | . . . . . . 1 . . . . Jam 1 | . . . . . . 1 . . . . Data Cores Recovered . | . . . . . . . . . . . Used . | . . . . . . . . . . . Hacking Detections 29 | . 8 1 . . 6 14 . . . . Full Trace Events 11 | . 8 1 . . 1 1 . . . . Feedback Events 1 | . . 1 . . . . . . . . Corruption 1 | . . 1 . . . . . . . . Feedback Blocked . | . . . . . . . . . . . Robot Schematics Acquired . | . . . . . . . . . . . Robots Built . | . . . . . . . . . . . Authchips . | . . . . . . . . . . . Time . | . . . . . . . . . . . Total Robot Build Rating . | . . . . . . . . . . . Part Schematics Acquired 4 | . . . . . . . . . 4 . Parts Built . | . . . . . . . . . . . Authchips . | . . . . . . . . . . . Time . | . . . . . . . . . . . Total Part Build Rating . | . . . . . . . . . . . Parts Repaired . | . . . . . . . . . . . Time . | . . . . . . . . . . . Parts Recycled . | . . . . . . . . . . . Recycled Matter . | . . . . . . . . . . . Retrieved Matter . | . . . . . . . . . . . Retrieved Components 13 | . 12 . . . . 1 . . . . Parts Scanalyzed . | . . . . . . . . . . . Part Schematics Acquired . | . . . . . . . . . . . Parts Damaged . | . . . . . . . . . . . Bothacking | -11 -10 -10 -10 -9 -8 -7 -7 -7 -7 -7 ------------ Run | Yrd Mat Min Exi Min Mat Fac Low Low Zio Dee Used RIF Installer . | . . . . . . . . . . . Robots Hacked . | . . . . . . . . . . . Non-combat . | . . . . . . . . . . . Combat . | . . . . . . . . . . . Robot Hacks Applied . | . . . . . . . . . . . Relay Couplers Released . | . . . . . . . . . . . Fabnet Peak Effective % . | . . . . . . . . . . . Robots Rewired . | . . . . . . . . . . . Allies Hacked . | . . . . . . . . . . . Hacks Repelled . | . . . . . . . . . . . Allies | -11 -10 -10 -10 -9 -8 -7 -7 -7 -7 -7 -------- Run | Yrd Mat Min Exi Min Mat Fac Low Low Zio Dee Total Allies . | . . . . . . . . . . . Largest Group . | . . . . . . . . . . . Highest-Rated Group . | . . . . . . . . . . . Highest-Rated Ally . | . . . . . . . . . . . Total Orders . | . . . . . . . . . . . Ally Attacks . | . . . . . . . . . . . Total Damage . | . . . . . . . . . . . Kills . | . . . . . . . . . . . Allies Corrupted . | . . . . . . . . . . . Allies Melted . | . . . . . . . . . . . Intel | -11 -10 -10 -10 -9 -8 -7 -7 -7 -7 -7 ------- Run | Yrd Mat Min Exi Min Mat Fac Low Low Zio Dee Active Infowar (turns) 4882 | 18 1727 165 . . 1980 992 . . . . Optics 2972 | . . . . . 1980 992 . . . . Seismic 1910 | 18 1727 165 . . . . . . . . Robot Analysis Total 5 | . 2 . . . 1 2 . . . . Derelict Logs Recovered 5 | . . . . . . . 1 2 2 . Drone Launches . | . . . . . . . . . . . Drone Recoveries . | . . . . . . . . . . . Exploration | -11 -10 -10 -10 -9 -8 -7 -7 -7 -7 -7 ------------- Run | Yrd Mat Min Exi Min Mat Fac Low Low Zio Dee Turns Passed 21178 | 113 4496 355 544 34 1981 5273 1059 2321 3501 1501 Spaces Moved 8298 | 54 1624 89 226 15 756 1969 540 897 1308 820 Core 11 | 9 . . . . 2 . . . . . Treads 7722 | 45 1624 89 226 15 724 1969 540 897 1308 285 Legs 565 | . . . . . 30 . . . . 535 Wheels . | . . . . . . . . . . . Hover . | . . . . . . . . . . . Flight . | . . . . . . . . . . . Fastest Speed 50 | 50 160 240 240 240 160 163 163 160 240 110 Average Speed 218 | 141 212 240 240 240 245 224 181 239 240 159 Slowest Speed 1050 | 160 240 240 240 240 1050 245 245 243 240 240 Overloaded Moves . | . . . . . . . . . . . Propulsion Burnouts . | . . . . . . . . . . . Robots Hopped . | . . . . . . . . . . . Potential Cave-ins . | . . . . . . . . . . . Cave-ins Triggered . | . . . . . . . . . . . Exploration Rate (%) 57 | 4 99 20 61 5 47 55 73 89 84 90 Regions Visited 10 Branch Regions 7 Pre-discovered Areas 2 | . . . 1 . . . . 1 . . Known Exits Taken 2 | . . . . . 1 1 . . . . Unknown Exits Taken 8 | 1 1 1 1 1 . . 1 1 1 . Scrap Searched 10 | . . . . . . . 2 4 4 . Spaces Dug 3 | . . . . . . 3 . . . . Terrain Destroyed 190 | . . . . . 2 26 33 24 . 105 Melee 3 | . . . . . . 3 . . . . Projectile 3 | . . . . . . . . . . 3 AOE 184 | . . . . . 2 23 33 24 . 102 Terrain Rammed . | . . . . . . . . . . . Walls Destroyed . | . . . . . . . . . . . Machines Disabled . | . . . . . . . . . . . Actions | -11 -10 -10 -10 -9 -8 -7 -7 -7 -7 -7 --------- Run | Yrd Mat Min Exi Min Mat Fac Low Low Zio Dee Total 10798 | 88 2541 166 228 14 837 2724 600 1027 1616 957 Wait 1894 | 13 817 35 . . 14 590 28 80 276 41 Move 8288 | 53 1623 88 225 14 755 1968 539 896 1307 820 Hop . | . . . . . . . . . . . Pick Up 95 | 11 21 2 2 . 15 20 6 4 1 13 Fast Attach 39 | . . . . . 7 19 . 3 1 9 Attach 51 | 7 5 7 . . 5 3 5 2 . 17 Detach 2 | . . . . . . . . . . 2 Swap 50 | . 5 1 1 . 6 14 5 7 2 9 Drop 77 | 1 3 . . . 10 41 3 6 2 11 Fire 261 | 3 67 33 . . 25 66 13 29 . 25 Melee 13 | . . . . . . 3 1 . . 9 Ram . | . . . . . . . . . . . Kick 1 | . . . . . . . . . . 1 Crush . | . . . . . . . . . . . Escape Stasis . | . . . . . . . . . . . Rewire . | . . . . . . . . . . . Trap . | . . . . . . . . . . . Miscellaneous 27 | . . . . . . . . . 27 . Route ------- -11/Scrapyard -10/Materials (discovered 6 exits: *Mat x3 / *Min x2 / [*Sub]) -10/Mines (discovered 3 exits: Mat x2 / *Exi) -10/Exiles -9/Mines -8/Materials (discovered 3 exits: *Fac x3) -7/Factory (discovered 2 exits: *Low x2) -7/Lower Caves (discovered 2 exits: *Low / *Zio) -7/Lower Caves (discovered 2 exits: [*Fac] / *Zio) -7/Zion -7/Deep Caves (discovered 1 exit: [*Pro]) History --------- Turn | Location | Event 4 | -11/Scrapyard | Discovered new exit (range 16) 114 | -11/Scrapyard | Entered Materials 300 | -10/Materials | Build established: Mutant 322 | -10/Materials | Discovered new exit (range 9) 537 | -10/Materials | Discovered new exit (range 13) 755 | -10/Materials | Discovered new exit (range 8) 814 | -10/Materials | Discovered new exit (range 4) 934 | -10/Materials | Discovered new exit (range 8) 1159 | -10/Materials | Discovered new exit (range 5) 3222 | -10/Materials | Core integrity fell below 50% 4610 | -10/Materials | Entered Mines 4618 | -10/Mines | Identified exit to Materials 4623 | -10/Mines | Assembled infested the area 4732 | -10/Mines | Core integrity fell below 20% 4759 | -10/Mines | Lost 5 parts (1p2u2w) 4764 | -10/Mines | Destroyed 9 combat bots 4953 | -10/Mines | Deemed a non-threat by the Exiles lab entrance 4953 | -10/Mines | Discovered new exit (range 5) 4965 | -10/Mines | Entered Exiles 5023 | -10/Exiles | Met 8R-AWN 5066 | -10/Exiles | Met EX-HEX 5138 | -10/Exiles | Met EX-BIN 5172 | -10/Exiles | Aligned with FarCom system 5174 | -10/Exiles | Given EX-Vault access code 5229 | -10/Exiles | Opened EX-Vault 5246 | -10/Exiles | Found Longsword +1 5297 | -10/Exiles | Warned to stay clear of 0b10 Research branches 5359 | -10/Exiles | Met EX-DEC 5376 | -10/Exiles | Learned location of Zion (-7) 5485 | -10/Exiles | Discovered new exit (range 12) 5509 | -10/Exiles | Left Exiles lab with Longsword +1 5509 | -10/Exiles | Entered Mines 5517 | -9/Mines | Discovered new exit (range 10) 5543 | -9/Mines | Entered Materials 5543 | -8/Materials | Evolved 4 slots: Propulsion x1, Utility x2, Weapon x1 5908 | -8/Materials | Build established: Scavenger-Skirmisher 5951 | -8/Materials | Discovered new exit (range 9) 5961 | -8/Materials | Garrison activated, responded to threat 5992 | -8/Materials | Identified exit to Garrison 6313 | -8/Materials | Identified exit to Factory 7524 | -8/Materials | Entered Factory 7524 | -7/Factory | Evolved 2 slots: Utility x2 8414 | -7/Factory | Build established: Skirmisher 8804 | -7/Factory | Build established: Tank 10633 | -7/Factory | Build established: Gunner 11278 | -7/Factory | Identified exit to Lower Caves 12797 | -7/Factory | Entered Lower Caves 12954 | -7/Lower Caves | Learned Factory terminal intel 12979 | -7/Lower Caves | A Derelict revealed a hidden shortcut to a safe place 13203 | -7/Lower Caves | Acquired the password to a Derelict Tinkerer's latest research 13214 | -7/Lower Caves | Found Prototype Special Weapon 13834 | -7/Lower Caves | Discovered new exit (range 9) 13856 | -7/Lower Caves | Entered another Lower Caves area 13865 | -7/Lower Caves | Build established: Tank 14094 | -7/Lower Caves | Discovered new exit (range 9) 14335 | -7/Lower Caves | Encountered a Warlord checkpoint 14938 | -7/Lower Caves | Build established: Gunner 15410 | -7/Lower Caves | Learned 8 Factory zone layouts 15577 | -7/Lower Caves | Build established: Tank 15731 | -7/Lower Caves | Discovered new exit (range 12) 16177 | -7/Lower Caves | Entered Zion 16300 | -7/Zion | System corruption cleaned by Quarantine Array 16444 | -7/Zion | Learned Factory garrison access intel 16523 | -7/Zion | Received a visual enhancement algorithm 16525 | -7/Zion | Ran a visual enhancement algorithm 16806 | -7/Zion | Given the Hacking Drone Bay 16806 | -7/Zion | Found Prototype Device 17398 | -7/Zion | Learned location of 1 exit from Factory 18446 | -7/Zion | Rebuked by Imprinter 19666 | -7/Zion | Discovered new exit (range 5) 19669 | -7/Zion | Saw the warning signs outside the Deep Caves entrance 19678 | -7/Zion | Entered Deep Caves 19681 | -7/Deep Caves | Met 5H-AD0 20002 | -7/Deep Caves | Z-Facility disabled 20029 | -7/Deep Caves | Attacked by Z-Imprinter 20087 | -7/Deep Caves | Found Prototype Protection 20087 | -7/Deep Caves | Identified Zio. Weapon Casing 20198 | -7/Deep Caves | Thanked by 5H-AD0 20332 | -7/Deep Caves | Found Prototype Protection 20334 | -7/Deep Caves | Identified Zio. Heavy Carapace 20340 | -7/Deep Caves | Lost 5 parts (1n2u2w) 20554 | -7/Deep Caves | Lost 3 parts (1p1u1w) 20580 | -7/Deep Caves | Build established: Gunner 21023 | -7/Deep Caves | Discovered new exit (range 7) 21092 | -7/Deep Caves | Build established: Mutant 21152 | -7/Deep Caves | Spotted AG-12261 21154 | -7/Deep Caves | Found AWS/Autocannon 21160 | -7/Deep Caves | Triggered Deep Caves wall 21160 | -7/Deep Caves | Spotted AS-47619 21160 | -7/Deep Caves | Spotted AS-14630 21160 | -7/Deep Caves | Destroyed AS-47619 21169 | -7/Deep Caves | Core integrity fell below 50% 21170 | -7/Deep Caves | Spotted AG-68412 21179 | -7/Deep Caves | Core integrity fell below 20% 21179 | -7/Deep Caves | Destroyed by as-21460 with Assembled F-torch Last Messages --------------- 21168_ as-75272 destroyed. 21170_ Knocked back. 21170_ as-59931 destroyed. 21171_ 3R-AI6(b) destroyed. 21172_ AG-68412: "DSI9AT1D G8OHIBQ29FWG 26R186 QD12WHW8W33 TDK1 81FTS" 21172_ as-32840 destroyed. 21174_ Destroyed Asb. Blade. 21174_ as-46726 knocked back. 21174_ as-43822 destroyed. 21175_ Enh. Nuclear Core destroyed. 21175_ Mak. Light Armor Plating destroyed. 21175_ Target Analyzer destroyed. 21176_ Core Analyzer destroyed. 21176_ Destroyed Unknown Hover Unit. 21176_ as-46867 knocked back. 21177_ Knocked back. 21178_ Mak. Light Armor Plating destroyed. 21178_ AWS/Autocannon destroyed. 21179_ Critical hit (Burn: +80). Map ----- +----------------------------------------------------+ | ???????????????? # ? ???????????????????????????# | | ????????????? ? ??##???????#####??###???????# | | ??????????? # #? #??????## ### ##?????## | | ?????????? #? #?????## #???### | | ????????""" #? #????## #??## | | ????????" ## #????# #???# | | ????????" # ##???# ##???# | | ????????" ???## ###????## | | ????????# ?????## ##???????# | | ?????????" ???????## ##???????## | | ?????????" #????##### #????????## | | ?????????" ?????# #?????????# | | ?????????" #?###?# "" ##????????## | | ????????"" #?# #?# """ #????????## | | ??????###! ### ### " ##????????# | | ??????" !! # ##?????????# | | ??? !!!! h [ ##### ##??????????## | | ??? !! * #### ##??????######## | | ??? a[ ## ####?### # <# | | ???? aaa * a a ;### #?# # | | ???? a *a a == ;;# ### #### | | ????? aa a aa % ## ## ### ###??? | | ????? asaaaa % ;## ## ## #????? | | ?????"" [ =aaaa #?####### ## #????? | | ??????### [ = a a #??????# ## #????? | | ????????"" [[ @ #??????# ## #????? | | ?????????" M [ #??????# ## #????? | | ?????????" == #??????# ## #?#### | | ?????????" == #??????## ## ### | | ?????????" ** ???????# ## ## | | ????????? [ #??????# ## # | | ?????????? #??????# ## # ## | | ??????????? G ! ######## ### | | ???????????? M !* # ## ## #?# | | ????????????? ## ## ### | | ?????????????? * # ## ## | | ?????????????? ### ## | | ??????????????? #?# # | | ??????????????? ##?## #### | | ???????????????? # # #???## ## #??## | | ????????????????#### ?# ## #?????## #### ##???### | | ?????????????????????????##???????####??###??????? | | ?????????????????????????????????????????????????? | | ?????????????????????????????????????????????????? | | | | | | | | | | | | | +----------------------------------------------------+ Best States ------------- Heat Dissipation 60 Energy Generation 27 Energy Capacity 300 Matter Stores 300 Matter Capacity 300 Sight Range 18 Terrain Scan Density 10 Armor Coverage 1425 Resistance: KI 30 Core Shielding 20 Weapon Shielding 100 Evasion (%) 55 Target Analysis 5 Core Analysis 6 Recoil Reduction 3 Matter Filtering 30 Trap Extractor Capacity 6 Item Schematics ----------------- Riot Gun | -7/Zion | Free Battle Cannon | -7/Zion | Free Flamer | -7/Zion | Free Arc Thrower | -7/Zion | Free Robot Schematics ------------------ None Fabricated ------------ Nothing Repaired ---------- Nothing Alien Tech Used ----------------- None Achievements -------------- Are We The Baddies? That's One Door That Should Stay Closed Challenges ------------ None Game ------ Seed ThermicCouplerMask Manual? 0 Play Time 02:03:56 Cumulative 53.7 hours Start 2025.06.16 @ 07:16:57 End 2025.06.16 @ 10:50:41 Sessions 1 Manual Loads 0 Difficulty Rogue Special Mode None Game No. 43 Rogue 24 Adventurer 0 Explorer 19 Win Type - Total 0 Types 0/0/0/0/0/0/0/0/0/0 Lore% 47 Gallery% 38 Achievement% 67 Wizard Run 0 Options --------- Layout 1 ASCII 0 Keyboard 0 Movement Mouse Keybinds 0 Fullscreen 2 Font 16/SmallcapsGlow Map View 50x40 Zoom Use 0% Tactical HUD 1 Map Filters NONE Filters NONE Steam SD RUN: cb1c1a09-a51f-46e9-a783-1462ac4ac638